bitfinex/quotes_ETHUSD_20220106
["timestamp","ask_amount","ask_price","bid_price","bid_amount"]
[1641495505429,1.89079196,3451.4,3451.0,1.76386828]
[1641495505829,2.92686344,3451.3,3451.0,1.76386828]
[1641495506033,2.45267825,3451.3,3451.0,1.76386828]
[1641495506231,0.00682108,3451.2,3451.0,1.76386828]
[1641495506632,0.00625266,3451.1,3451.0,1.76386828]
[1641495507434,0.00625266,3451.1,3451.0,2.06386828]
[1641495507932,0.00625266,3451.1,3451.0,3.10566528]
[1641495508131,0.00625266,3451.1,3451.0,3.40566528]
[1641495508977,0.00625266,3451.1,3451.0,4.40566528]
[1641495509374,0.00625266,3451.1,3451.0,3.40566528]
[1641495510375,1.64704462,3451.4,3451.0,3.40566528]
[1641495510576,1.64704462,3451.4,3451.2,0.7242]
[1641495510776,0.00113685,3451.3,3451.2,0.7242]
[1641495510977,0.00113685,3451.3,3451.2,1.0242]
[1641495512378,0.00113685,3451.3,3451.2,1.8998]
[1641495513023,0.00113685,3451.3,3451.2,10.67210077]
[1641495513222,1.64704462,3451.4,3451.3,0.8756]
[1641495513421,1.64704462,3451.4,3451.3,3.0478]
[1641495513622,1.64704462,3451.4,3451.3,4.0478]
[1641495513826,1.64704462,3451.4,3451.3,3.0478]
[1641495521121,1.64704462,3451.4,3451.3,0.8756]
[1641495521527,1.64704462,3451.4,3451.3,1.8919]
[1641495521723,1.17108139,3452.1,3451.8,0.8756]
[1641495521922,1.17108139,3452.1,3451.7,0.72405]
[1641495521923,1.17108139,3452.1,3451.9,0.8756]
[1641495522123,0.00397896,3452.0,3451.9,0.8756]
[1641495522324,0.00397896,3452.0,3451.9,4.09712705]
[1641495522524,1.17108139,3452.1,3451.9,4.09712705]
[1641495522724,0.151,3452.7,3451.9,4.09712705]
[1641495522923,0.151,3452.7,3452.4,0.8756]
[1641495523124,0.151,3452.7,3451.9,3.22152705]
[1641495523125,0.151,3452.7,3452.6,2.27005023]
[1641495523325,0.151,3452.7,3452.6,2.57005023]
[1641495523525,0.15497897,3452.7,3452.6,2.57005023]
[1641495523893,0.15497897,3452.7,3452.6,1.89956]
[1641495524086,0.15497897,3452.7,3452.6,1.1756]
[1641495524784,0.15497897,3452.7,3452.6,0.8756]
[1641495526689,0.15497897,3452.7,3452.6,2.52820097]
[1641495528128,0.15497897,3452.7,3452.6,0.8756]
[1641495528529,2.6067533,3452.7,3452.6,0.8756]
[1641495529130,0.15497897,3452.7,3452.6,0.8756]
[1641495529332,2.09221906,3452.7,3452.6,0.8756]
[1641495529931,4.54399971,3452.7,3452.6,0.8756]
[1641495530330,2.60675962,3452.7,3452.6,0.8756]
[1641495530733,0.15497897,3452.7,3452.6,0.8756]
[1641495533677,0.15497897,3452.7,3452.6,1.1756]
[1641495537326,3.6662,3453.7,3452.6,1.1756]
[1641495537526,3.6662,3453.7,3453.1,0.8756]
[1641495537736,0.00454738,3453.5,3453.2,0.8756]
[1641495537926,0.00454738,3453.5,3453.3,0.8756]
[1641495538127,0.00397896,3453.4,3453.3,0.8756]
[1641495538426,0.00397896,3453.4,3453.3,3.2085843]
[1641495538626,0.00397896,3453.4,3453.3,3.9324443]
[1641495538875,0.00397896,3453.4,3453.3,3.6324443]
[1641495539874,0.00397896,3453.4,3453.3,3.9324443]
[1641495540072,0.00397896,3453.4,3453.3,3.6324443]
[1641495540275,0.00397896,3453.4,3453.3,3.9324443]
[1641495541777,0.00885828,3454.4,3453.5,0.8756]
[1641495541974,0.00885828,3454.4,3453.7,1.59923]
[1641495542176,0.00285992,3454.0,3453.9,3.7256]
[1641495542377,0.00885828,3454.4,3453.9,3.7256]
[1641495542628,0.00885828,3454.4,3454.1,0.8756]
[1641495542832,0.00227369,3454.3,3454.1,0.8756]
[1641495543029,0.00227369,3454.3,3454.1,0.8256]
[1641495543225,0.00885828,3454.4,3454.1,0.8256]
[1641495543226,0.00170527,3454.2,3454.1,0.8256]
[1641495543628,0.00170527,3454.2,3454.1,1.54912]
[1641495544228,3.02164723,3454.8,3454.1,1.54912]
[1641495544429,2.87020796,3455.1,3454.2,0.8256]
[1641495544633,0.00436529,3455.5,3454.2,0.8256]
[1641495544634,0.00170527,3454.5,3454.2,0.8256]
[1641495544932,0.00436529,3455.5,3454.4,0.8256]
[1641495545130,0.00436529,3455.5,3454.5,0.8256]
[1641495545131,0.0198,3455.0,3454.5,0.8256]
[1641495545428,0.0198,3455.0,3454.2,1.8813975]
[1641495545429,0.00397896,3454.9,3454.7,0.8256]
[1641495545829,0.0198,3455.0,3454.7,0.8256]
[1641495545830,0.00341054,3454.8,3454.7,0.8256]
[1641495547580,7.30341054,3454.8,3454.7,0.8256]
[1641495547777,7.30448251,3454.8,3454.7,0.8256]
[1641495548178,24.41448251,3454.8,3454.7,0.8256]
[1641495548378,30.38322213,3454.8,3454.7,0.8256]
[1641495549282,4.499864,3454.8,3454.7,0.8256]
[1641495549483,10.3624547,3454.8,3454.7,0.8256]
[1641495549683,8.31776264,3454.8,3454.7,0.8256]
[1641495550137,0.00448251,3454.8,3454.7,0.8256]
[1641495550734,4.05448251,3454.8,3454.7,0.8256]
[1641495550939,2.45517194,3454.8,3454.7,0.8256]
[1641495551338,19.56517194,3454.8,3454.7,0.8256]
[1641495552539,23.24120608,3454.8,3454.2,0.8256]
[1641495552739,2.84339519,3454.7,3454.2,0.8256]
[1641495552936,2.84623731,3454.7,3454.2,0.8256]
[1641495553136,6.12779554,3454.8,3454.2,0.8256]
[1641495553137,0.00227369,3454.6,3454.2,0.8256]
[1641495553437,1.10282126,3454.3,3454.2,0.8256]
[1641495554082,1.47042835,3454.4,3454.2,0.8256]
[1641495554478,1.4715652,3454.4,3454.3,0.8256]
[1641495554877,0.00113685,3454.4,3454.3,0.8256]
[1641495558123,0.00215296,3454.4,3454.3,0.8256]
[1641495558523,17.11215296,3454.4,3454.3,0.8256]
[1641495558726,0.00215296,3454.4,3454.3,0.8256]
[1641495558927,2.45284239,3454.4,3454.3,0.8256]
[1641495559826,2.45284239,3454.4,3454.3,1.1256]
[1641495560027,0.00215296,3454.4,3454.3,1.1256]
[1641495561128,0.00215296,3454.4,3454.3,0.8256]
[1641495562175,0.00215296,3454.4,3454.3,1.1256]
[1641495562778,0.00215296,3454.4,3454.3,0.8256]
[1641495563081,0.00215296,3454.4,3454.3,1.1256]
[1641495563878,0.00215296,3454.4,3454.3,0.8256]
[1641495564278,0.00215296,3454.4,3454.3,1.1256]
[1641495565135,2.45068943,3454.9,3454.8,0.8256]
[1641495565432,2.45068943,3454.9,3454.8,3.53764978]
[1641495567128,0.0198,3455.0,3454.9,0.8256]
[1641495567428,0.02321054,3455.0,3454.9,3.8756]
[1641495567627,0.007,3455.3,3455.2,0.8256]
[1641495568027,0.007,3455.3,3455.2,2.14950056]
[1641495568633,0.25738434,3455.9,3455.5,1.5489]
[1641495568891,0.25738434,3455.9,3455.6,0.8256]
[1641495569180,0.25296343,3455.9,3455.6,0.8256]
[1641495569982,0.25296343,3455.9,3455.8,0.8256]
[1641495570180,0.25296343,3455.9,3455.8,1.1256]
[1641495570381,0.25296343,3455.9,3455.8,2.12716816]
[1641495571784,0.6988178,3456.1,3455.8,2.12716816]
[1641495571785,0.6988178,3456.1,3455.9,10.8256]
[1641495571984,0.6988178,3456.1,3455.9,11.2436]
[1641495572182,13.00113685,3456.0,3455.9,12.2436]
[1641495572384,2.37186519,3457.4,3456.8,0.8256]
[1641495572831,2.37186519,3457.4,3456.9,3.88590073]
[1641495573129,3.34144355,3457.6,3456.9,2.50020734]
[1641495573332,4.9412,3457.7,3457.3,0.8256]
[1641495573526,4.9412,3457.7,3456.9,2.84222014]
[1641495573527,5.0,3458.0,3457.6,0.8256]
[1641495573927,5.0,3458.0,3457.4,1.44598]
[1641495573928,5.0,3458.0,3457.9,0.8256]
[1641495574129,22.11,3458.0,3457.9,0.8256]
[1641495574327,5.01136847,3458.0,3457.9,0.8256]
[1641495575534,3.35,3457.8,3457.7,0.72298]
[1641495575832,3.36023162,3457.8,3457.4,1.44598]
[1641495576028,0.01023162,3457.8,3457.4,1.44598]
[1641495576228,0.0096632,3457.7,3457.4,1.44598]
[1641495576684,0.00909478,3457.6,3457.4,1.44598]
[1641495577082,0.00852635,3457.5,3456.9,1.44616]
[1641495577288,0.00852635,3457.5,3456.5,0.0044204]
[1641495577481,0.07118739,3457.6,3456.5,0.0044204]
[1641495577482,0.07914532,3457.4,3456.5,0.0044204]
[1641495577881,0.0785769,3457.3,3456.5,0.0044204]
[1641495578083,2.12330179,3457.0,3456.5,0.0044204]
[1641495578484,0.00511581,3456.9,3456.5,0.0044204]
[1641495578682,0.00511581,3456.9,3456.7,0.7232]
[1641495578883,2.20853512,3456.8,3456.7,0.7232]
[1641495579282,2.21020863,3456.8,3456.7,0.7232]
[1641495579485,2.20835296,3456.8,3456.7,0.7232]
[1641495579684,0.0062209,3456.8,3456.7,0.7232]
[1641495579884,0.0062209,3456.8,3456.5,0.72323]
[1641495580331,0.00397896,3456.7,3456.5,0.3]
[1641495580629,0.00341054,3456.6,3456.3,3.93208131]
[1641495581031,0.00284212,3456.5,3456.3,1.74642]
[1641495581530,0.00227369,3456.4,3456.3,1.74642]
[1641495582636,1.8284199,3456.4,3456.3,1.74642]
[1641495583432,1.8284199,3456.4,3456.0,1.44654]
[1641495583637,1.8284199,3456.4,3455.2,6.0495]
[1641495583638,19.00960729,3456.4,3455.6,0.72342]
[1641495583876,1.84903887,3456.4,3455.6,0.72342]
[1641495584075,1.84903887,3456.4,3455.7,2.1918902]
[1641495584476,1.84903887,3456.4,3455.8,0.00284212]
[1641495584678,1.84903887,3456.4,3455.8,0.72621212]
[1641495584878,1.10201585,3456.3,3455.8,1.02621212]
[1641495585076,1.10201585,3456.3,3455.9,0.00227369]
[1641495585678,1.10201585,3456.3,3456.0,0.72333]
[1641495585878,1.10201585,3456.1,3456.0,0.72333]
[1641495586077,1.10201585,3456.1,3456.0,1.02333]
[1641495586778,2.95105472,3456.4,3456.0,1.02333]
[1641495586982,2.95105472,3456.4,3456.0,0.3]
[1641495587179,2.95105472,3456.4,3456.1,0.00113685]
[1641495587629,20.06105472,3456.4,3456.1,0.00113685]
[1641495587830,20.06105472,3456.4,3455.0,0.8680492]
[1641495587831,17.11,3456.2,3455.9,0.00227369]
[1641495588031,17.11,3456.2,3455.8,0.00284212]
[1641495588232,17.11,3456.0,3455.5,0.00454739]
[1641495588433,20.36965506,3455.9,3454.7,0.00909477]
[1641495588636,1.66607291,3455.3,3454.9,2.25389456]
[1641495588835,1.66607291,3455.3,3455.1,1.44687]
[1641495589234,1.66607291,3455.3,3455.2,0.00625266]
[1641495589532,0.07118739,3455.8,3455.2,0.00625266]
[1641495589933,1.10225687,3455.5,3455.2,0.00625266]
[1641495590334,1.10225687,3455.5,3455.0,0.0073895]
[1641495590541,1.66881744,3455.3,3455.0,0.7309195]
[1641495590741,1.10225687,3455.5,3455.0,0.7309195]
[1641495590937,1.10225687,3455.5,3455.1,0.00682108]
[1641495591585,4.7751194,3455.6,3455.1,0.00682108]
[1641495591881,1.97909343,3455.5,3455.1,0.00682108]
[1641495592285,4.89742865,3455.5,3455.1,0.00682108]
[1641495592483,17.11,3455.4,3455.1,0.00682108]
[1641495592783,4.89742865,3455.5,3454.9,0.00795793]
[1641495592784,1.97909343,3455.5,3454.9,0.00795793]
[1641495592984,2.89704198,3455.4,3454.9,0.00795793]
[1641495593286,19.08909343,3455.5,3454.9,0.00795793]
[1641495593584,17.11,3455.3,3454.9,0.00795793]
[1641495593987,17.11,3455.3,3454.8,0.00852635]
[1641495594785,2.93666495,3455.2,3454.8,0.00852635]
[1641495594987,17.11,3455.1,3454.8,0.00852635]
[1641495595235,3.07555652,3455.0,3454.8,0.00852635]
[1641495595438,3.07555652,3455.0,3454.5,0.01023162]
[1641495595635,20.25674391,3455.0,3454.6,0.0096632]
[1641495595836,0.07118739,3454.9,3454.5,0.01023162]
[1641495596038,2.33139246,3454.9,3454.5,2.05041487]
[1641495596435,2.33139246,3454.9,3454.6,0.0096632]
[1641495596639,19.44139246,3454.9,3454.6,0.0096632]
[1641495596835,2.33139246,3454.9,3454.6,0.0096632]
[1641495597635,2.33139246,3454.9,3454.3,0.01136847]
[1641495597838,2.94747105,3454.8,3454.3,0.01136847]
[1641495598437,2.33139246,3454.9,3454.3,0.01136847]
[1641495598638,2.33139246,3454.9,3454.3,0.73502847]
[1641495599085,0.07118739,3454.9,3454.4,0.01080004]
[1641495599687,0.07118739,3454.9,3454.4,2.98569488]
[1641495599888,1.10225687,3455.5,3454.5,1.86511]
[1641495600091,3.67475004,3455.4,3455.3,4.92334316]
[1641495600292,3.67475004,3455.4,3455.3,1.07334316]
[1641495600487,3.67475004,3455.4,3455.3,2.0]
[1641495600890,0.00093763,3455.7,3455.3,2.3]
[1641495601086,0.00093763,3455.7,3455.5,2.72333]
[1641495601290,0.00093763,3455.7,3455.6,1.689006]
[1641495602190,0.00093763,3455.7,3455.6,3.135606]
[1641495603035,0.00093763,3455.7,3455.6,3.085606]
[1641495603634,0.00093763,3455.7,3455.6,1.4466]
[1641495603831,0.00093763,3455.7,3455.5,4.0251778]
[1641495603832,0.00093763,3455.7,3455.5,2.0]
[1641495604434,17.09376576,3456.1,3455.5,2.0]
[1641495604633,1.0,3456.0,3455.5,2.0]
[1641495604832,1.70512535,3455.6,3455.5,2.0]
[1641495605034,1.0,3456.0,3455.5,2.0]
[1641495605432,17.11,3456.1,3455.5,2.0]
[1641495605633,17.11,3456.1,3455.2,3.45703813]
[1641495605634,1.9999,3455.5,3455.2,0.8681611]
[1641495605837,2.58887703,3455.2,3454.2,3.43381267]
[1641495606034,17.11,3455.1,3454.2,3.43381267]
[1641495606234,18.11,3455.1,3454.2,0.05277884]
[1641495606692,1.90430304,3455.0,3454.2,0.05277884]
[1641495606893,4.35365861,3455.0,3454.2,0.05277884]
[1641495607096,5.35365861,3455.0,3454.2,0.05277884]
[1641495607293,4.35365861,3455.0,3454.1,2.02359847]
[1641495607493,2.44935557,3455.0,3454.7,1.93837002]
[1641495608095,2.44935557,3454.9,3454.7,2.23837002]
[1641495608300,2.44935557,3454.9,3454.8,0.00852635]
[1641495608895,3.6911339,3455.2,3454.8,0.00852635]
[1641495609097,2.58887703,3455.2,3454.8,0.00852635]
[1641495609296,0.13085484,3455.0,3454.8,0.00852635]
[1641495609699,0.13085484,3455.0,3454.8,0.87665805]
[1641495610158,2.58887703,3455.2,3455.0,2.65]
[1641495610341,2.58887703,3455.2,3455.1,3.87286015]
[1641495610342,1.68387703,3455.2,3455.1,3.87286015]
[1641495610545,4.77633507,3456.2,3455.1,0.72482108]
[1641495610740,4.78075599,3456.5,3455.1,0.72482108]
[1641495610942,4.78075599,3456.5,3455.6,0.4339659]
[1641495611142,4.78075599,3456.5,3455.4,1.3018975]
[1641495611143,6.44926138,3456.5,3456.1,1.9275044]
[1641495611341,4.77633507,3456.5,3456.1,1.9275044]
[1641495611641,21.88633507,3456.5,3456.1,1.9275044]
[1641495611841,17.11,3456.5,3456.1,1.9275044]
[1641495612041,17.11,3456.5,3456.0,0.72329]
[1641495612345,17.11,3456.5,3456.1,0.00113685]
[1641495612541,4.77633507,3456.7,3456.1,0.00113685]
[1641495612542,5.49969507,3456.7,3456.1,0.00113685]
[1641495612743,21.28391082,3456.6,3456.0,0.00170527]
[1641495612941,21.28561609,3456.6,3456.0,0.00170527]
[1641495613141,1.96752734,3456.3,3456.0,0.00170527]
[1641495613984,4.89596117,3456.3,3456.0,0.00170527]
[1641495614182,24.61,3456.2,3455.9,0.81965477]
[1641495614383,2.8832597,3456.1,3455.5,1.4467]
[1641495614684,2.8832597,3456.1,3455.6,0.00227369]
[1641495614685,17.11,3456.0,3455.6,0.00227369]
[1641495614885,4.6024597,3456.1,3455.6,0.00227369]
[1641495614886,17.11,3455.8,3455.6,0.00227369]
[1641495615084,6.35,3455.7,3455.4,0.00341054]
[1641495615482,5.14591969,3455.5,3455.4,0.00341054]
[1641495615687,5.14591969,3455.5,3454.9,0.02440693]
[1641495615688,0.0176,3455.1,3454.9,0.02440693]
[1641495615985,0.0176,3455.1,3455.0,0.00227369]
[1641495616184,0.77313042,3455.1,3455.0,0.00227369]
[1641495616685,0.84431781,3455.1,3455.0,0.00227369]
[1641495616885,17.95431781,3455.1,3455.0,0.00227369]
[1641495617284,0.84431781,3455.1,3455.0,0.00227369]
[1641495617743,0.84431781,3455.1,3454.8,0.00341054]
[1641495617942,3.77945399,3455.1,3454.8,0.00341054]
[1641495618142,2.2375779,3454.9,3454.8,0.00341054]
[1641495618547,17.88313042,3455.1,3454.8,0.00341054]
[1641495619243,2.92110248,3455.0,3454.8,0.00341054]
[1641495619944,17.88313042,3455.1,3454.8,0.00341054]
[1641495620147,0.77313042,3455.1,3454.8,0.00341054]
[1641495621048,0.77313042,3455.1,3455.0,2.20371655]
[1641495621249,0.77313042,3455.1,3454.8,0.00341054]
[1641495621485,1.51193042,3455.1,3454.8,0.00341054]
[1641495621686,17.11,3455.0,3454.8,0.00341054]
[1641495622484,1.49683042,3455.1,3454.8,1.8770814]
[1641495622885,0.77313042,3455.1,3454.9,0.00284212]
[1641495625238,17.88313042,3455.1,3454.9,0.00284212]
[1641495626034,0.77313042,3455.1,3454.9,0.00284212]
[1641495626933,0.77313042,3455.1,3454.9,0.36463062]
[1641495629179,2.4496387,3455.0,3454.9,0.36463062]
[1641495629378,2.4496387,3455.0,3454.9,0.00284212]
[1641495631080,2.3896387,3455.0,3454.9,0.00284212]
[1641495631281,0.77313042,3455.1,3454.9,0.00284212]
[1641495636382,17.88313042,3455.1,3454.9,0.00284212]
[1641495636882,17.88313042,3455.1,3454.7,0.00397896]
[1641495637086,17.11,3454.9,3454.2,0.21088325]
[1641495637285,2.9552795,3454.8,3454.2,0.21088325]
[1641495637483,0.72381,3454.7,3454.3,0.0022737]
[1641495637683,2.8230976,3454.7,3454.3,0.0022737]
[1641495637883,0.07118739,3454.6,3454.3,0.0022737]
[1641495638085,18.17389045,3454.6,3454.3,0.0022737]
[1641495638282,17.17389045,3454.6,3454.3,0.0022737]
[1641495638483,3.8230976,3454.7,3454.3,0.0022737]
[1641495638484,17.10270306,3454.4,3454.3,0.0022737]
[1641495638684,10.0,3454.3,3453.6,0.02440693]
[1641495638888,17.10270306,3454.0,3453.6,0.02440693]
[1641495639082,1.0,3453.9,3453.7,0.00341054]
[1641495639284,7.10270306,3454.0,3453.7,0.00341054]
[1641495639484,0.07118739,3453.9,3453.7,0.00341054]
[1641495639785,9.36775154,3453.8,3453.7,0.00341054]
[1641495639984,26.47775154,3453.8,3453.7,0.00341054]
[1641495640537,26.47775154,3453.8,3453.6,0.00397896]
[1641495640741,26.47775154,3453.8,3453.6,0.00056842]
[1641495641140,3.0215163,3453.7,3453.6,0.00056842]
[1641495641539,6.8715163,3453.7,3453.6,0.00056842]
[1641495642439,20.96,3453.7,3453.6,0.00056842]
[1641495642744,17.11,3453.5,3453.2,0.00438402]
[1641495642940,0.418,3453.4,3453.2,0.00438402]
[1641495643243,18.528,3453.4,3453.3,5.27e-06]
[1641495643442,23.72608739,3453.4,3453.3,5.27e-06]
[1641495643640,23.72608739,3453.4,3451.4,6.28004652]
[1641495643641,0.7242764,3452.9,3451.5,0.0102369]
[1641495643904,17.11,3452.3,3451.5,0.0102369]
[1641495644287,1.70275896,3452.2,3451.5,0.0102369]
[1641495644487,1.70275896,3452.2,3451.3,0.01137374]
[1641495644488,17.11,3452.1,3451.3,0.01137374]
[1641495644687,1.95456997,3451.4,3451.3,0.01137374]
[1641495644890,2.63576997,3451.4,3451.3,0.01137374]
[1641495645490,5.70813503,3451.4,3451.3,0.01137374]
[1641495645687,5.70813503,3451.4,3451.2,0.01194217]
[1641495645894,20.0890023,3451.3,3451.2,0.01194217]
[1641495646090,0.72443,3451.6,3451.2,0.01194217]
[1641495646689,0.7562945,3451.5,3451.2,0.01194217]
[1641495646990,1.10225687,3452.4,3451.2,0.01194217]
[1641495647189,1.10225687,3452.4,3452.2,2.10424539]
[1641495647388,5.7932,3452.3,3451.8,0.72417]
[1641495648238,5.7932,3452.3,3452.0,1.82432589]
[1641495648638,5.7932,3452.3,3452.1,0.00682635]
[1641495650344,5.7932,3452.3,3452.1,1.81690645]
[1641495650741,5.7932,3452.3,3452.2,0.00625793]
[1641495651397,5.7932,3452.3,3452.2,0.73028793]
[1641495656438,5.7932,3452.3,3452.2,0.00625793]
[1641495658641,7.95,3452.2,3452.1,0.02385793]
[1641495658889,5.86438739,3452.3,3452.1,0.02385793]
[1641495660592,5.86438739,3452.3,3451.7,1.69069842]
[1641495660790,2.32105452,3452.1,3451.7,1.69069842]
[1641495660988,0.72427,3452.1,3451.8,0.00227369]
[1641495661988,0.72427,3452.1,3451.8,0.05639069]
[1641495662188,1.65602276,3452.0,3451.8,0.05639069]
[1641495662389,1.65602276,3452.0,3451.9,0.00170527]
[1641495662632,0.72427,3452.1,3451.9,0.00170527]
[1641495663433,0.72427,3452.1,3451.9,5.27e-06]
[1641495663434,17.18118739,3452.0,3451.9,5.27e-06]
[1641495663638,18.59918739,3452.0,3451.9,5.27e-06]
[1641495664835,18.89918739,3452.0,3451.9,5.27e-06]
[1641495665134,18.828,3452.0,3451.9,5.27e-06]
[1641495665336,21.77085388,3452.0,3450.8,0.00432953]
[1641495665534,0.72443,3451.6,3450.8,0.00432953]
[1641495665739,0.72443,3451.6,3451.0,0.00511581]
[1641495666406,5.7932,3452.3,3451.0,3.29405678]
[1641495666606,5.7932,3452.3,3451.0,3.8499889]
[1641495666808,0.00170527,3452.2,3451.1,0.00454739]
[1641495667004,0.00170527,3452.2,3451.1,0.01732121]
[1641495667202,0.00113685,3452.1,3451.1,0.01732121]
[1641495667405,0.00113685,3452.1,3452.0,2.1810497]
[1641495667605,0.00170527,3452.2,3452.0,2.1810497]
[1641495667804,0.00113685,3452.1,3452.0,2.1810497]
[1641495671933,0.00113685,3452.1,3451.5,1.814724]
[1641495672135,0.72532685,3452.1,3451.5,1.814724]
[1641495672335,0.72532685,3452.1,3451.6,0.00170527]
[1641495673136,0.72532685,3452.1,3451.9,2.14543659]
[1641495674286,0.72532685,3452.1,3451.9,2.18872378]
[1641495675383,0.72532685,3452.1,3451.9,0.04328719]
[1641495676681,3.55392272,3452.0,3451.9,0.04328719]
[1641495677750,2.45166585,3452.0,3451.9,0.04328719]
[1641495680654,2.40702051,3452.0,3451.9,0.04328719]
[1641495681254,2.40702051,3452.0,3451.6,0.00170527]
[1641495681688,0.72427,3452.0,3451.6,0.00170527]
[1641495682287,2.22519726,3451.9,3451.6,0.00170527]
[1641495682788,1.44856,3451.8,3451.6,0.00170527]
[1641495682988,3.22598733,3451.5,3451.3,0.7243]
[1641495683197,0.82828218,3450.6,3450.4,6.2]
[1641495684188,0.82828218,3450.6,3450.1,1.76436614]
[1641495684388,0.72458,3450.5,3450.1,2.48887614]
[1641495684589,0.72458,3450.5,3450.2,0.00795793]
[1641495686845,0.72458,3450.5,3450.2,0.76725698]
[1641495687249,0.72458,3450.5,3450.3,0.00738951]
[1641495687459,0.82828218,3450.6,3450.3,0.00738951]
[1641495689588,1.55277218,3450.6,3450.3,0.00738951]
[1641495689789,1.55277218,3450.6,3450.3,0.73185951]
[1641495690188,1.55277218,3450.6,3450.4,0.00682108]
[1641495692192,1.55277218,3450.6,3450.3,0.00738951]
[1641495692656,1.55277218,3450.6,3450.4,0.03479036]
[1641495693153,1.55277218,3450.6,3450.5,0.00625266]
[1641495693355,0.82828218,3450.6,3450.5,0.00625266]
[1641495695756,2.99578589,3450.6,3450.5,0.00527638]
[1641495696397,2.92333473,3450.6,3450.5,0.00527638]
[1641495696589,0.75583102,3450.6,3450.5,0.00527638]
[1641495696796,10.0,3450.5,3450.1,0.74694013]
[1641495696993,4.11261516,3450.6,3449.8,0.08244412]
[1641495696994,2.4790472,3450.1,3449.8,0.08244412]
[1641495697293,17.11,3450.0,3449.8,0.02951676]
[1641495697493,17.11,3450.0,3449.8,0.03935568]
[1641495697693,3.6217972,3450.1,3449.8,0.03935568]
[1641495697890,1.73392563,3450.0,3449.8,0.03935568]
[1641495698291,17.11,3449.9,3449.8,0.03935568]
[1641495698792,17.11,3449.9,3449.8,0.04333464]
[1641495698991,17.11,3449.9,3449.8,0.07774363]
[1641495699591,17.10613867,3449.9,3449.8,0.07774363]
[1641495700261,18.10613867,3449.9,3449.8,0.07774363]
[1641495700450,17.10613867,3449.9,3449.8,0.07774363]
[1641495700849,1.73392563,3450.0,3449.8,0.07774363]
[1641495701054,2.94523727,3450.0,3449.8,0.07774363]
[1641495701252,3.6217972,3450.1,3449.9,0.00341054]
[1641495701451,12.56893528,3450.0,3449.9,0.00341054]
[1641495701652,13.56893528,3450.0,3449.9,0.00341054]
[1641495701854,13.56893528,3450.0,3449.8,0.07376467]
[1641495701855,10.0034,3449.9,3449.8,0.07376467]
[1641495702052,11.4214,3449.9,3449.8,0.07376467]
[1641495702254,10.0,3449.8,3449.7,0.00983892]
[1641495702452,11.418,3449.8,3449.7,0.00983892]
[1641495702652,28.528,3449.8,3449.7,0.01097577]
[1641495703053,30.27637217,3449.8,3449.7,0.01097577]
[1641495703655,30.27637217,3449.8,3449.7,0.01199545]
[1641495704083,30.27637217,3449.8,3449.7,0.00215653]
[1641495704883,30.27637217,3449.8,3449.7,0.00105653]
[1641495705084,32.72980111,3449.8,3449.7,0.00105653]
[1641495705488,32.72980111,3449.8,3449.7,0.0354672]
[1641495706687,32.72980111,3449.8,3449.7,0.0154672]
[1641495706887,38.52300111,3449.8,3449.7,0.0004672]
[1641495707087,38.5941885,3449.8,3449.7,0.0004672]
[1641495708147,42.2745528,3449.8,3449.7,0.0004672]
[1641495708744,45.1245528,3449.8,3449.7,0.0004672]
[1641495709143,2.04999955,3449.2,3449.0,0.05292933]
[1641495709545,2.04999955,3449.2,3449.1,0.00341054]
[1641495710544,0.71511111,3449.3,3449.1,0.00341054]
[1641495710947,2.45342894,3449.2,3449.1,0.00341054]
[1641495711606,7.62122361,3449.8,3449.1,0.03782683]
[1641495711810,6.5179,3449.8,3449.2,2.70814764]
[1641495712006,6.5179,3449.8,3449.2,2.71098975]
[1641495712307,6.5179,3449.8,3449.3,0.00227369]
[1641495713311,5.7932,3449.8,3449.4,0.72468]
[1641495713808,5.7932,3449.8,3449.5,0.00113684]
[1641495714311,5.7932,3449.8,3449.6,0.72464]
[1641495714509,5.73527645,3449.8,3449.6,0.72464]
[1641495714909,5.73527645,3449.8,3449.7,0.3]
[1641495715556,5.73527645,3449.8,3449.7,1.57087634]
[1641495716157,5.73527645,3449.8,3449.7,4.6373632]
[1641495716360,5.73527645,3449.8,3449.7,4.7413131]
[1641495716558,5.73527645,3449.8,3449.7,1.57087634]
[1641495716758,5.73527645,3449.8,3449.7,5.42087634]
[1641495717158,5.73527645,3449.8,3449.7,2.57087634]
[1641495718159,5.73527645,3449.8,3449.7,2.60528699]
[1641495718358,5.73527645,3449.8,3449.7,0.03441065]
[1641495719496,5.73527645,3449.8,3449.7,1.10178124]
[1641495719697,5.73527645,3449.8,3449.7,1.40178124]
[1641495721001,5.73527645,3449.8,3449.7,0.03441065]
[1641495724050,6.73527645,3449.8,3449.7,0.03441065]
[1641495724250,7.22446384,3449.8,3449.7,0.03441065]
[1641495724650,6.22446384,3449.8,3449.7,0.03441065]
[1641495725650,7.22446384,3449.8,3449.7,0.03441065]
[1641495725849,26.78797517,3449.8,3449.7,0.03441065]
[1641495726693,9.67797517,3449.8,3449.7,0.03441065]
[1641495726993,8.67797517,3449.8,3449.7,0.03441065]
[1641495727197,11.48389174,3449.8,3449.7,0.03441065]
[1641495727395,12.48389174,3449.8,3449.7,0.03441065]
[1641495727596,10.39477517,3449.8,3449.7,0.03441065]
[1641495727994,10.39477517,3449.8,3449.3,0.00227369]
[1641495728192,2.15242516,3449.6,3449.3,0.00227369]
[1641495728394,0.418,3449.5,3449.2,0.00284211]
[1641495728597,0.725,3449.4,3449.2,0.00284211]
[1641495728795,9.9,3449.2,3448.9,1.10255564]
[1641495729100,28.01,3449.2,3448.9,1.10255564]
[1641495729397,28.79918739,3449.2,3448.9,1.10255564]
[1641495729597,1.7251,3449.1,3448.9,1.10255564]
[1641495729795,10.418,3449.0,3448.9,1.10255564]
[1641495730252,28.528,3449.0,3448.9,1.10426092]
[1641495730953,28.89918739,3449.0,3448.9,1.10426092]
[1641495731153,1.1042,3448.9,3448.5,0.00427563]
[1641495731354,1.1042,3448.9,3446.9,2.0303042]
[1641495731355,5.06428951,3448.8,3446.9,2.0303042]
[1641495731558,5.06428951,3448.8,3448.6,0.00170527]
[1641495731559,18.41,3448.7,3448.6,0.00170527]
[1641495731952,1.45024,3448.3,3448.1,2.13899228]
[1641495732356,2.92592658,3448.4,3448.2,0.00397896]
[1641495732557,17.11,3448.5,3448.2,0.00397896]
[1641495732854,6.0,3448.4,3447.2,1.45014]
[1641495733053,0.72513,3447.9,3447.2,1.45014]
[1641495733253,0.72513,3447.9,3447.4,0.7251]
[1641495733453,1.45136685,3448.4,3447.4,0.7251]
[1641495733652,1.45136685,3448.4,3447.5,0.00397896]